fUSD/lending_fUSD_20241216
["ID","MTS","AMOUNT","RATE_DAILY","PERIOD"]
[345567148,1734354733999,-5056.67225884,0.0002485,10]
[345567149,1734354734008,-7168.67181335,0.0002485,10]
[345567150,1734354734018,-200.0,0.00024852,10]
[345567151,1734354734030,-1257.71452334,0.00024853,10]
[345567152,1734354734039,-6197.95138123,0.00024853,10]
[345567153,1734354734049,-1257.71452334,0.00024853,10]
[345567154,1734354734058,-200.0,0.00024853,10]
[345567155,1734354734068,-200.0,0.00024854,10]
[345567156,1734354734077,-658.20050333,0.00024856,10]
[345567157,1734354734087,-200.0,0.00024856,10]
[345567158,1734354734097,-8543.47365219,0.00024857,2]
[345567159,1734354734106,-8543.47365219,0.00024857,2]
[345567160,1734354734115,-6652.34056098,0.00024857,10]
[345567161,1734354734124,-4176.22368199,0.00024859,10]
[345567162,1734354734133,-420.37794345,0.0002486,10]
[345567163,1734354734142,-658.20050333,0.00024861,10]
[345567164,1734354734151,-4249.14459772,0.00024861,10]
[345567165,1734354734161,-200.0,0.00024862,10]
[345567166,1734354734170,-200.0,0.00024863,10]
[345567167,1734354734180,-4249.14459772,0.00024864,10]
[345567168,1734354734189,-7156.26782555,0.00024865,10]
[345567169,1734354734198,-658.20050333,0.00024865,10]
[345567170,1734354734207,-6197.95138123,0.00024866,10]
[345567171,1734354734216,-504105.55923153,0.00024866,10]
[345567172,1734354734226,-504105.55923153,0.00024866,10]
[345567173,1734354734236,-345.76913092,0.00024867,10]
[345567174,1734354734250,-101706.6104201,0.00024868,10]
[345567175,1734354734259,-200.0,0.00024868,10]
[345567176,1734354734269,-19634.00874032,0.00024868,10]
[345567177,1734354734280,-504105.55923153,0.00024868,10]
[345567178,1734354734290,-4096.42,0.00024869,2]
[345567179,1734354734299,-5056.67225884,0.00024869,10]
[345567180,1734354734309,-5056.67225884,0.0002487,10]
[345567181,1734354734319,-2310.06777717,0.0002487,10]
[345567182,1734354734329,-2310.06777717,0.0002487,10]
[345567183,1734354734338,-7168.67181335,0.0002487,10]
[345567184,1734354734347,-200.0,0.00024871,10]
[345567185,1734354734357,-2729.00419556,0.00024873,10]
[345567186,1734354734366,-200.0,0.00024874,10]
[345567187,1734354734375,-504105.55923153,0.00024875,10]
[345567188,1734354734386,-19634.00874032,0.00024875,10]
[345567189,1734354734396,-658.20050333,0.00024876,10]
[345567190,1734354734405,-5056.67225884,0.00024878,10]
[345567191,1734354734415,-19634.00874032,0.00024878,10]
[345567192,1734354734424,-4176.22368199,0.00024879,10]
[345567193,1734354734433,-504105.55923153,0.00024879,10]
[345567194,1734354734443,-2729.00419556,0.00024879,10]
[345567195,1734354734452,-2729.00419556,0.0002488,10]
[345567196,1734354734461,-6652.34056098,0.00024881,10]
[345567197,1734354734470,-7156.26782555,0.00024881,10]
[345567198,1734354734480,-19634.00874032,0.00024881,10]
[345567199,1734354734489,-2310.06777717,0.00024882,10]
[345567200,1734354734499,-4249.14459772,0.00024883,10]
[345567201,1734354734509,-7156.26782555,0.00024884,10]
[345567202,1734354734518,-2729.00419556,0.00024885,10]
[345567203,1734354734529,-4249.14459772,0.00024885,10]
[345567204,1734354734539,-4249.14459772,0.00024885,10]
[345567205,1734354734548,-200.0,0.00024887,10]
[345567206,1734354734558,-200.0,0.00024888,10]
[345567207,1734354734567,-200.0,0.00024889,10]
[345567208,1734354734577,-420.37794345,0.00024889,10]
[345567209,1734354734586,-200.0,0.00024889,10]
[345567210,1734354734595,-200.0,0.00024889,10]
[345567211,1734354734605,-200.0,0.0002489,10]
[345567212,1734354734614,-5000.0,0.0002489,2]
[345567213,1734354734623,-10809.67491081,0.0002489,30]
[345567214,1734354734632,-55197.22281408,0.0002489,2]
[345567215,1734354734641,-200.0,0.0002489,10]
[345567216,1734354734650,-420.37794345,0.00024891,10]
[345567217,1734354734660,-2310.06777717,0.00024892,10]
[345567218,1734354734669,-200.0,0.00024892,10]
[345567219,1734354734678,-200.0,0.00024892,10]
[345567220,1734354734687,-345.76913092,0.00024893,10]
[345567221,1734354734697,-6652.34056098,0.00024893,10]
[345567222,1734354734706,-658.20050333,0.00024893,10]
[345567223,1734354734716,-4249.14459772,0.00024893,10]
[345567224,1734354734725,-1257.71452334,0.00024893,10]
[345567225,1734354734734,-6197.95138123,0.00024893,10]
[345567226,1734354734743,-5056.67225884,0.00024894,10]
[345567227,1734354734753,-200.0,0.00024894,10]
[345567228,1734354734762,-4176.22368199,0.00024894,10]
[345567229,1734354734771,-4176.22368199,0.00024894,10]
[345567230,1734354734782,-200.0,0.00024895,10]
[345567231,1734354734791,-200.0,0.00024895,10]
[345567232,1734354734800,-101706.6104201,0.00024895,10]
[345567233,1734354734810,-1257.71452334,0.00024895,10]
[345567234,1734354734820,-504105.55923153,0.00024896,10]
[345567235,1734354734829,-101706.6104201,0.00024896,10]
[345567236,1734354734839,-7156.26782555,0.00024896,10]
[345567237,1734354734848,-345.76913092,0.00024897,10]
[345567238,1734354734857,-19634.00874032,0.00024897,10]
[345567239,1734354734867,-200.0,0.00024898,10]
[345567240,1734354734877,-6652.34056098,0.00024898,10]
[345567241,1734354734887,-5056.67225884,0.00024898,10]
[345567242,1734354734896,-150.0,0.000249,2]
[345567243,1734354734906,-14475.93108116,0.000249,2]
[345567244,1734354734915,-201.53260833,0.000249,7]
[345567245,1734354734925,-52759.54010865,0.000249,2]
[345567246,1734354734934,-4110.93,0.00024964,2]
[345567247,1734354734943,-3115.6718899,0.00024983,2]
[345567248,1734354734952,-3768.5854147,0.00024983,2]
[345567249,1734354734962,-4421.4989394,0.00024983,2]
[345567250,1734354734971,-5074.4124641,0.00024983,2]
[345567251,1734354734980,-5727.3259888,0.00024983,2]
[345567252,1734354734990,-7529.3964224,0.00024983,2]
[345567253,1734354735000,-9107.240602,0.00024983,2]
[345567254,1734354735009,-10685.0847816,0.00024983,2]
[345567255,1734354735019,-12262.9289612,0.00024983,2]
[345567256,1734354735029,-13840.7731408,0.00024983,2]
[345567257,1734354735039,-399.53649056,0.00024996,2]
[345567258,1734354735048,-631.48422424,0.00024998,120]
[345567259,1734354735059,-503.533423,0.00024998,120]
[345567260,1734354735068,-2000.0,0.00024998,120]
[345567261,1734354735078,-500.0,0.00024998,120]
[345567262,1734354735087,-200.0,0.00024998,120]
[345567263,1734354735097,-78101.51,0.00024999,2]
[345567264,1734354735107,-201.03,0.00025,2]
[345567265,1734354735118,-20127889.65927775,0.00025,2]
[345567266,1734354735127,-10052.99784558,0.00025,14]
[345567267,1734354735136,-1447185.23908435,0.00025,2]
[345567268,1734354737299,-770.82,0.00021917,3]
[345567269,1734354737309,-5268.48289519,0.00025,2]
[345567270,1734354737321,-448.805552,0.00025,2]
[345567271,1734354737378,-500.0,0.00021917,3]
[345567272,1734354737388,-500.0,0.00021917,3]
[345567273,1734354737397,-6424.09349619,0.00025,2]
[345567274,1734354737408,-1024.70591123,0.00025,2]
[345567275,1734354737435,-500.0,0.00021917,3]
[345567276,1734354737445,-770.82,0.00021917,3]
[345567277,1734354737455,-500.0,0.00021917,3]
[345567278,1734354737464,-42851.00481668,0.00025,2]
[345567279,1734354737475,-2359.00121,0.00025,2]
[345567280,1734354737612,-427.77,0.00021917,3]
[345567281,1734354737641,-150.79,0.00018082,2]
[345567282,1734354737651,-72.23,0.00021917,3]
[345567283,1734354737662,-770.82,0.00021917,3]
[345567284,1734354737672,-500.0,0.00021917,3]
[345567285,1734354737681,-500.0,0.00021917,3]
[345567286,1734354737691,-500.0,0.00021917,3]
[345567287,1734354737700,-303.28936361,0.00021917,3]
[345567288,1734354737712,-196.71063639,0.00021917,3]
[345567289,1734354737722,-770.89828601,0.00021917,3]
[345567290,1734354737732,-207.52844878,0.00021917,3]
[345567291,1734354737742,-500.0,0.00021917,3]
[345567292,1734354737753,-500.0,0.00021917,3]
[345567293,1734354737763,-500.0,0.00021917,3]
[345567294,1734354737773,-500.0,0.00021917,3]
[345567295,1734354737786,-500.0,0.00021917,3]
[345567296,1734354737795,-500.0,0.00021917,3]
[345567297,1734354737804,-500.0,0.00021917,3]
[345567298,1734354737813,-359.92444109,0.00021917,3]
[345567299,1734354737824,-500.0,0.00021917,3]
[345567300,1734354737833,-500.0,0.00021917,3]
[345567301,1734354737843,-500.0,0.00021917,3]
[345567302,1734354737853,-15454.33657273,0.00025,2]
[345567303,1734354737865,-5405.45253584,0.00025,2]
[345567304,1734354737876,-1086.00001,0.00025,2]
[345567305,1734354737891,-4785.83642843,0.00025,2]
[345567306,1734354738287,-1099.0,0.00019547,2]
[345567307,1734354738298,-500.533146,0.0002,2]
[345567308,1734354738307,-501.61093019,0.00021917,3]
[345567309,1734354738317,-501.20357419,0.00021917,3]
[345567310,1734354738328,-500.0,0.00021917,3]
[345567311,1734354738338,-1099.0,0.00022547,2]
[345567312,1734354738347,-1995.66030326,0.00024857,2]
[345567313,1734354738371,-641.34335888,0.00024857,2]
[345567314,1734354738643,-553.85632455,0.00021917,3]
[345567315,1734354738653,-500.0,0.00021917,3]
[345567316,1734354738662,-2.32418445,0.00021917,3]
[345567317,1734354738678,-394.72,0.00021917,3]
[345567318,1734354738690,-102.95581555,0.00021917,3]
[345567319,1734354738699,-340.15370045,0.00021917,3]
[345567320,1734354738711,-159.84629955,0.00021917,3]
[345567321,1734354738721,-417.29370065,0.00021917,3]
[345567322,1734354738749,-256.00451223,0.00018679,2]
[345567323,1734354738759,-82.70629935,0.00021917,3]
[345567324,1734354738768,-401.07296633,0.00021917,3]
[345567325,1734354738824,-500.0,0.00018679,2]
[345567326,1734354738834,-98.92703367,0.00021917,3]
[345567327,1734354738844,-500.0,0.00021917,3]
[345567328,1734354738853,-502.20261113,0.00021917,3]
[345567329,1734354738863,-532.2703543,0.00024857,2]
[345567330,1734354738898,-500.0,0.00018679,2]
[345567331,1734354738908,-5374.19963575,0.00024857,2]
[345567332,1734354738918,-2617.11624422,0.00025,2]
[345567333,1734354746378,1628.13,0.00017265,2]
[345567334,1734355299577,9008.92732114,0.000191,28]
[345567335,1734355404357,165.32,0.00013699,2]
[345567337,1734355534407,164.54,0.00010137,2]
[345567342,1734355628124,-299.18466852,0.00017,10]
[345567343,1734355635097,-481.74158017,0.00017,10]
[345567344,1734355641102,-569.07375131,0.00017,10]
[345567345,1734355641122,-198.09247744,0.00017165,2]
[345567346,1734355649232,-10.54390368,0.00017165,2]
[345567347,1734355649255,-5877.0,0.00017265,2]
[345567348,1734355649278,-938.65,0.00017265,2]
[345567349,1734355649307,-11509.05583222,0.00019,2]
[345567355,1734355773506,656.62,0.00017156,2]
[345567359,1734355832405,-507.2,0.00018679,2]
[345567360,1734355832416,-492.22,0.00018679,2]
[345567361,1734355832425,-152.08,0.00018679,2]
[345567362,1734355832434,-504.12,0.00018679,2]
[345567363,1734355832443,-8863.74847901,0.00018679,2]
[345567364,1734355832454,-208.63638111,0.00018899,2]
[345567365,1734355832463,-150.0,0.00018999,2]
[345567366,1734355832472,-18747.52765126,0.00019,2]
[345567367,1734355832482,-509.98,0.00019,2]
[345567368,1734355832491,-496.23,0.00019,2]
[345567369,1734355832500,-505.67,0.00019,2]
[345567370,1734355832509,-150.0,0.00019177,2]
[345567371,1734355832518,-192.37,0.00019259,2]
[345567372,1734355832528,-656.62,0.00019419,2]
[345567373,1734355832537,-655.87,0.00019547,2]
[345567374,1734355832546,-616.33,0.00019573,2]
[345567375,1734355832555,-616.33,0.00019578,2]
[345567376,1734355832564,-616.33,0.00019583,2]
[345567377,1734355832573,-616.33,0.00019589,2]
[345567378,1734355832582,-1662.39755094,0.00019592,2]
[345567379,1734355832591,-616.33,0.00019594,2]
[345567380,1734355832602,-616.33,0.00019599,2]
[345567381,1734355832611,-616.33,0.00019604,2]
[345567382,1734355832620,-616.33,0.00019609,2]
[345567383,1734355832629,-616.33,0.00019614,2]
[345567384,1734355832638,-616.33,0.00019619,2]
[345567385,1734355832647,-616.33,0.00019625,2]
[345567386,1734355832655,-616.33,0.0001963,2]
[345567387,1734355832665,-616.33,0.00019635,2]
[345567388,1734355832674,-616.33,0.0001964,2]
[345567389,1734355832686,-616.33,0.00019645,2]
[345567390,1734355832695,-616.33,0.0001965,2]
[345567391,1734355832704,-616.33,0.00019655,2]
[345567392,1734355832713,-616.33,0.00019661,2]
[345567393,1734355832724,-616.33,0.00019666,2]
[345567394,1734355832741,-616.33,0.00019671,2]
[345567396,1734355832750,-200.0,0.00019691,2]
[345567397,1734355832760,-1374.82,0.00019691,2]
[345567398,1734355832769,-200.0,0.00019702,2]
[345567399,1734355832778,-299.99,0.00019726,7]
[345567400,1734355832787,-9999.99,0.00019726,2]
[345567401,1734355832797,-4315.99,0.00019726,2]
[345567403,1734355832806,-150.99,0.00019726,2]
[345567405,1734355832815,-268.44,0.00019726,2]
[345567407,1734355832824,-166.29,0.00019728,2]
[345567409,1734355832833,-1070.22,0.00019745,2]
[345567411,1734355832842,-8010.96813692,0.00019774,2]
[345567414,1734355832854,-15889.03186308,0.00019774,2]
[345567416,1734355832863,-250.0,0.00019774,2]
[345567418,1734355832873,-731.0,0.00019796,2]
[345567420,1734355832882,-250.0,0.00019796,2]
[345567422,1734355832891,-167.36,0.00019839,2]
[345567424,1734355832900,-295.46,0.0001996,2]
[345567426,1734355832910,-17671.26797169,0.00019979,2]
[345567428,1734355832920,-17745.69634177,0.0001998,2]
[345567430,1734355832929,-800.0,0.0001998,2]
[345567432,1734355832938,-800.0,0.0001998,2]
[345567434,1734355832947,-800.0,0.0001998,2]
[345567436,1734355832956,-800.0,0.0001998,2]
[345567438,1734355832965,-800.0,0.0001998,2]
[345567440,1734355832974,-800.0,0.0001998,2]
[345567442,1734355832986,-1000.0,0.00019993,2]
[345567444,1734355832995,-157.72,0.00019996,30]
[345567445,1734355833004,-2700.0,0.0002,3]
[345567448,1734355833014,-2699.0,0.0002,3]
[345567450,1734355833023,-1955.68782346,0.0002,3]
[345567452,1734355833035,-743.31217654,0.0002,3]
[345567454,1734355833045,-2699.0,0.0002,3]
[345567456,1734355833054,-719.66848182,0.0002,3]
[345567458,1734355833067,-1862.52588563,0.0002,3]
[345567460,1734355833079,-116.80563255,0.0002,3]
[345567462,1734355833088,-2699.0,0.0002,3]
[345567464,1734355833098,-1376.52,0.00020002,2]
[345567466,1734355833107,-800.0,0.00020068,2]
[345567468,1734355833116,-250.0,0.0002008,2]
[345567470,1734355833126,-1026.62,0.00020109,2]
[345567472,1734355833135,-500.0,0.00020156,2]
[345567474,1734355833145,-500.0,0.00020156,2]
[345567475,1734355833154,-500.0,0.00020156,2]
[345567477,1734355833163,-187.98219335,0.00020156,2]
[345567479,1734355833173,-523.39408003,0.00020156,2]
[345567481,1734355833183,-1563.26317818,0.00020157,2]
[345567483,1734355833194,-332.73682182,0.00020157,2]
[345567485,1734355833203,-107.08317828,0.00020157,2]
[345567487,1734355833215,-2873.60715987,0.00020157,2]
[345567497,1734355833302,-781.30966185,0.00020157,2]
[345567499,1734355833311,-56.64402763,0.00020157,2]
[345567502,1734355833323,-916.24197237,0.00020157,2]
[345567503,1734355833332,-1254.0,0.00020157,2]
[345567505,1734355833341,-535.0,0.00020157,2]
[345567507,1734355833350,-3632.0,0.00020157,2]
[345567509,1734355833359,-1099.0,0.00020157,2]
[345567511,1734355833370,-1262.0,0.00020157,2]
[345567513,1734355833380,-3882.0,0.00020157,2]
[345567515,1734355833389,-155.76,0.00020157,2]
[345567517,1734355833398,-2008.0,0.00020157,2]
[345567519,1734355833407,-455.5,0.00020375,2]
[345567521,1734355833416,-2816.0,0.000204,2]
[345567523,1734355833426,-250.0,0.00020434,2]
[345567525,1734355833436,-1662.39755092,0.00020654,2]
[345567527,1734355833445,-295.46,0.00020698,2]
[345567529,1734355833454,-2000.0,0.00020822,2]
[345567531,1734355833463,-2541.47,0.00020944,2]
[345567533,1734355833472,-2559.40390097,0.00020987,10]
[345567535,1734355833484,-393.39757229,0.00020987,10]
[345567538,1734355833496,-970.46529129,0.00020987,10]
[345567540,1734355833506,-10287.10361055,0.00021,2]
[345567542,1734355833515,-200.0,0.00021,2]
[345567544,1734355833525,-500.0,0.00021164,2]
[345567545,1734355833535,-800.0,0.00021164,2]
[345567547,1734355833545,-192.37,0.00021185,2]
[345567549,1734355833562,-295.46,0.00021436,2]
[345567551,1734355833588,-2000.0,0.00021592,2]
[345567553,1734355833597,-3000.0,0.000216,2]
[345567555,1734355833606,-656.62,0.00021683,2]
[345567557,1734355833615,-1662.39755092,0.00021715,2]
[345567559,1734355833625,-403.6585,0.00021717,2]
[345567561,1734355833634,-500.0,0.00021733,2]
[345567563,1734355833643,-230.0,0.000218,2]
[345567565,1734355833653,-11849.8302,0.00021817,2]
[345567567,1734355833662,-4033.3635,0.00021817,2]
[345567569,1734355833671,-600.0,0.00021825,4]
[345567571,1734355833684,-268.82165082,0.000219,2]
[345567573,1734355833693,-268.82165069,0.000219,2]
[345567575,1734355833702,-268.82165069,0.000219,2]
[345567577,1734355833711,-268.82165069,0.000219,2]
[345567580,1734355833732,-268.82165069,0.000219,2]
[345567582,1734355833742,-268.82165069,0.000219,2]
[345567584,1734355833751,-268.82165069,0.000219,2]
[345567586,1734355833763,-268.82165069,0.000219,2]
[345567588,1734355833773,-2000.0,0.00021916,2]
[345567590,1734355833782,-2000.0,0.00021916,2]
[345567592,1734355833792,-2000.0,0.00021916,2]
[345567594,1734355833801,-2000.0,0.00021916,2]
[345567596,1734355833811,-2000.0,0.00021916,2]
[345567598,1734355833821,-2000.0,0.00021916,2]
[345567600,1734355833830,-753.01,0.00021917,2]
[345567602,1734355833840,-152.0,0.00021917,2]
[345567604,1734355833849,-735.76,0.00021917,2]
[345567606,1734355833859,-746.29,0.00021917,2]
[345567608,1734355833868,-758.75,0.00021917,2]
[345567610,1734355833878,-290.37108301,0.00021917,3]
[345567612,1734355833887,-500.80093269,0.00021917,3]
[345567614,1734355833897,-500.93907028,0.00021917,3]
[345567616,1734355833906,-500.0,0.00021917,3]
[345567618,1734355833916,-500.0,0.00021917,3]
[345567620,1734355833926,-500.0,0.00021917,3]
[345567622,1734355833936,-503.46201987,0.00021917,3]
[345567624,1734355833945,-500.0,0.00021917,3]
[345567626,1734355833955,-500.0,0.00021917,3]
[345567628,1734355833964,-500.0,0.00021917,3]
[345567630,1734355833974,-500.0,0.00021917,3]
[345567632,1734355833985,-609.12291951,0.00021917,3]
[345567634,1734355833995,-500.0,0.00021917,3]
[345567636,1734355834005,-500.0,0.00021917,3]
[345567638,1734355834014,-228.26353415,0.00021917,3]
[345567640,1734355834024,-501.03606088,0.00021917,3]
[345567642,1734355834033,-500.0,0.00021917,3]
[345567644,1734355834043,-500.0,0.00021917,3]
[345567646,1734355834052,-499.30868463,0.00021917,3]
[345567648,1734355834061,-500.0,0.00021917,3]
[345567650,1734355834071,-500.0,0.00021917,3]
[345567652,1734355834080,-500.0,0.00021917,3]
[345567654,1734355834089,-500.0,0.00021917,3]
[345567656,1734355834099,-368.7495027,0.00021917,3]
[345567658,1734355834108,-500.0,0.00021917,3]
[345567660,1734355834117,-500.0,0.00021917,3]
[345567662,1734355834131,-500.0,0.00021917,3]
[345567665,1734355834140,-500.0,0.00021917,3]
[345567666,1734355834151,-500.0,0.00021917,3]
[345567668,1734355834160,-500.0,0.00021917,3]
[345567670,1734355834170,-500.0,0.00021917,3]
[345567672,1734355834179,-500.0,0.00021917,3]
[345567674,1734355834189,-500.0,0.00021917,3]
[345567676,1734355834198,-500.0,0.00021917,3]
[345567678,1734355834207,-500.0,0.00021917,3]
[345567680,1734355834216,-368.6975,0.00021917,3]
[345567682,1734355834225,-500.0,0.00021917,3]
[345567684,1734355834237,-500.0,0.00021917,3]
[345567686,1734355834246,-500.0,0.00021917,3]
[345567688,1734355834256,-500.0,0.00021917,3]
[345567712,1734355834475,-348.09543124,0.00021917,3]
[345567714,1734355834486,-500.0,0.00021917,3]
[345567716,1734355834496,-500.0,0.00021917,3]
[345567718,1734355834508,-500.0,0.00021917,3]
[345567720,1734355834521,-500.0,0.00021917,3]
[345567722,1734355834536,-500.0,0.00021917,3]
[345567724,1734355834560,-500.0,0.00021917,3]
[345567726,1734355834579,-500.0,0.00021917,3]
[345567727,1734355834589,-500.0,0.00021917,3]
[345567728,1734355834598,-500.0,0.00021917,3]
[345567729,1734355834607,-500.0,0.00021917,3]
[345567730,1734355834615,-357.16889032,0.00021917,3]
[345567731,1734355834624,-500.0,0.00021917,3]
[345567732,1734355834634,-500.0,0.00021917,3]
[345567733,1734355834643,-500.0,0.00021917,3]
[345567734,1734355834652,-500.0,0.00021917,3]
[345567735,1734355834661,-500.0,0.00021917,3]
[345567736,1734355834670,-500.0,0.00021917,3]
[345567737,1734355834680,-500.0,0.00021917,3]
[345567738,1734355834691,-500.0,0.00021917,3]
[345567739,1734355834700,-500.0,0.00021917,3]
[345567740,1734355834709,-374.92,0.00021917,3]
[345567741,1734355834718,-500.0,0.00021917,3]
[345567742,1734355834730,-511.02808471,0.00021917,3]
[345567743,1734355834739,-500.0,0.00021917,3]
[345567744,1734355834749,-500.0,0.00021917,3]
[345567745,1734355834759,-500.0,0.00021917,3]
[345567746,1734355834769,-500.0,0.00021917,3]
[345567747,1734355834778,-601.39224712,0.00021917,3]
[345567748,1734355834787,-504.6034116,0.00021917,3]
[345567749,1734355834797,-500.0,0.00021917,3]
[345567750,1734355834806,-500.0,0.00021917,3]
[345567751,1734355834815,-500.0,0.00021917,3]
[345567752,1734355834824,-500.0,0.00021917,3]
[345567753,1734355834833,-500.0,0.00021917,3]
[345567754,1734355834842,-500.0,0.00021917,3]
[345567755,1734355834851,-500.0,0.00021917,3]
[345567756,1734355834860,-500.0,0.00021917,3]
[345567757,1734355834870,-325.19,0.00021917,3]
[345567758,1734355834880,-500.0,0.00021917,3]
[345567759,1734355834889,-535.3228607,0.00021917,3]
[345567760,1734355834899,-289.23670997,0.00021917,3]
[345567761,1734355834908,-500.0,0.00021917,3]
[345567762,1734355834917,-500.0,0.00021917,3]
[345567763,1734355834927,-500.0,0.00021917,3]
[345567764,1734355834936,-500.0,0.00021917,3]
[345567765,1734355834945,-500.0,0.00021917,3]
[345567766,1734355834954,-500.0,0.00021917,3]
[345567767,1734355834963,-500.0,0.00021917,3]
[345567768,1734355834972,-625.59,0.00021917,3]
[345567769,1734355834982,-500.0,0.00021917,3]
[345567770,1734355834991,-500.0,0.00021917,3]
[345567771,1734355835001,-500.0,0.00021917,3]
[345567772,1734355835010,-272.64,0.00021917,3]
[345567773,1734355835019,-500.0,0.00021917,3]
[345567774,1734355835029,-500.0,0.00021917,3]
[345567775,1734355835038,-500.0,0.00021917,3]
[345567776,1734355835047,-500.0,0.00021917,3]
[345567777,1734355835055,-500.0,0.00021917,3]
[345567778,1734355835065,-500.0,0.00021917,3]
[345567779,1734355835074,-500.0,0.00021917,3]
[345567780,1734355835083,-500.0,0.00021917,3]
[345567781,1734355835092,-500.0,0.00021917,3]
[345567782,1734355835101,-500.0,0.00021917,3]
[345567783,1734355835111,-500.0,0.00021917,3]
[345567784,1734355835120,-500.0,0.00021917,3]
[345567785,1734355835129,-500.0,0.00021917,3]
[345567786,1734355835138,-500.0,0.00021917,3]
[345567787,1734355835147,-500.0,0.00021917,3]
[345567788,1734355835156,-500.0,0.00021917,3]
[345567789,1734355835166,-500.0,0.00021917,3]
[345567790,1734355835175,-500.0,0.00021917,3]
[345567791,1734355835185,-500.0,0.00021917,3]
[345567792,1734355835194,-500.0,0.00021917,3]
[345567793,1734355835203,-500.0,0.00021917,3]
[345567794,1734355835212,-500.0,0.00021917,3]
[345567795,1734355835221,-250.39,0.00021917,3]
[345567796,1734355835235,-500.0,0.00021917,3]
[345567797,1734355835244,-255.95,0.00021917,3]
[345567798,1734355835253,-500.0,0.00021917,3]
[345567799,1734355835263,-287.77,0.00021917,3]
[345567800,1734355835273,-500.0,0.00021917,3]
[345567801,1734355835283,-500.0,0.00021917,3]
[345567802,1734355835292,-500.0,0.00021917,3]
[345567803,1734355835301,-500.0,0.00021917,3]
[345567804,1734355835311,-459.26,0.00021917,3]
[345567805,1734355835320,-628.12914711,0.00021917,3]
[345567806,1734355835330,-500.0,0.00021917,3]
[345567807,1734355835340,-500.0,0.00021917,3]
[345567808,1734355835349,-500.0,0.00021917,3]
[345567809,1734355835358,-504.03,0.00021917,3]
[345567810,1734355835368,-500.0,0.00021917,3]
[345567811,1734355835377,-500.0,0.00021917,3]
[345567812,1734355835386,-500.0,0.00021917,3]
[345567813,1734355835395,-500.0,0.00021917,3]
[345567814,1734355835404,-500.0,0.00021917,3]
[345567815,1734355835414,-227.84085181,0.00021917,3]
[345567816,1734355835423,-500.0,0.00021917,3]
[345567817,1734355835432,-511.49312936,0.00021917,3]
[345567818,1734355835442,-500.0,0.00021917,3]
[345567819,1734355835451,-500.0,0.00021917,3]
[345567820,1734355835461,-500.0,0.00021917,3]
[345567821,1734355835470,-503.05666132,0.00021917,3]
[345567822,1734355835480,-500.0,0.00021917,3]
[345567823,1734355835490,-500.0,0.00021917,3]
[345567824,1734355835499,-500.0,0.00021917,3]
[345567825,1734355835508,-500.0,0.00021917,3]
[345567826,1734355835517,-500.0,0.00021917,3]
[345567827,1734355835526,-500.0,0.00021917,3]
[345567828,1734355835535,-500.22637342,0.00021917,3]
[345567829,1734355835545,-500.0,0.00021917,3]
[345567830,1734355835554,-500.0,0.00021917,3]
[345567831,1734355835563,-500.0,0.00021917,3]
[345567832,1734355835573,-500.0,0.00021917,3]
[345567833,1734355835583,-508.34958552,0.00021917,3]
[345567834,1734355835592,-500.0,0.00021917,3]
[345567835,1734355835601,-500.0,0.00021917,3]
[345567836,1734355835610,-501.90903005,0.00021917,3]
[345567837,1734355835619,-500.0,0.00021917,3]
[345567838,1734355835628,-500.0,0.00021917,3]
[345567839,1734355835637,-500.0,0.00021917,3]